fUSD/lending_fUSD_20260529
["ID","MTS","AMOUNT","RATE_DAILY","PERIOD"]
[423310996,1780049450000,-3454.1114814,0.00015,2]
[423310998,1780049450000,-3555119.20968275,0.00015,2]
[423311002,1780049450000,-524.9326699,0.00015,2]
[423311003,1780049450000,-595.85768052,0.00015,2]
[423311000,1780049450000,-42591.19787192,0.00015,2]
[423311001,1780049450000,-311.98467859,0.00015,2]
[423310999,1780049450000,-516931.08126668,0.00015,2]
[423311004,1780049450000,-404.75,0.00015,2]
[423310994,1780049450000,-300.13246974,0.00015,2]
[423310981,1780049450000,-1240.92824413,0.00013699,2]
[423310991,1780049450000,-16965.0,0.00014105,2]
[423310989,1780049450000,-3806.0,0.00014049,2]
[423310968,1780049450000,-1240.92824413,0.00013699,2]
[423310971,1780049450000,-1240.92824413,0.00013699,2]
[423310970,1780049450000,-1240.92824413,0.00013699,2]
[423310986,1780049450000,-1240.92824413,0.00013699,2]
[423310976,1780049450000,-1240.92824413,0.00013699,2]
[423310973,1780049450000,-1240.92824413,0.00013699,2]
[423310969,1780049450000,-1240.92824413,0.00013699,2]
[423310978,1780049450000,-1240.92824413,0.00013699,2]
[423310974,1780049450000,-1240.92824413,0.00013699,2]
[423310975,1780049450000,-1240.92824413,0.00013699,2]
[423310980,1780049450000,-1240.92824413,0.00013699,2]
[423310990,1780049450000,-6299.0,0.00014077,2]
[423310979,1780049450000,-1240.92824413,0.00013699,2]
[423310983,1780049450000,-1240.92824413,0.00013699,2]
[423310982,1780049450000,-1240.92824413,0.00013699,2]
[423310985,1780049450000,-1240.92824413,0.00013699,2]
[423310977,1780049450000,-1240.92824413,0.00013699,2]
[423311012,1780049451000,-679.84901081,0.00012406,2]
[423311014,1780049451000,-1241.92120485,0.00014189,2]
[423311011,1780049451000,-5708.69245512,0.00014189,2]
[423311013,1780049451000,-463.60135556,0.00014189,2]
[423311010,1780049451000,-3499.17301425,0.00014189,2]
[423311015,1780049451000,-1207.61197022,0.00014189,2]
[423311008,1780049451000,-324.95090272,0.00014161,2]
[423311005,1780049451000,-290.0,0.00014161,2]
[423311007,1780049451000,-968.38065445,0.00014161,2]
[423311006,1780049451000,-934.13766006,0.00014161,2]
[423311009,1780049451000,-9104.53078277,0.00014161,2]
[423311017,1780049451000,-109.27930785,0.00015,2]
[423311025,1780049451000,-918.37286713,0.00015,2]
[423311020,1780049451000,-6337.07173078,0.00015,2]
[423311030,1780049451000,-1202.88884855,0.00015,2]
[423311029,1780049451000,-555201.99823009,0.00015,2]
[423311027,1780049451000,-3269.05551518,0.00015,2]
[423311026,1780049451000,-634.48367367,0.00015,2]
[423311022,1780049451000,-370.45,0.00015,2]
[423311016,1780049451000,-217.14592052,0.000149,2]
[423311021,1780049451000,-732.23943309,0.00015,2]
[423311023,1780049451000,-2129.93,0.00015,2]
[423311024,1780049451000,-14950.81141236,0.00015,2]
[423311019,1780049451000,-1668.73,0.00015,2]
[423311018,1780049451000,-707.16647587,0.00015,2]
[423311028,1780049451000,-822.41952396,0.00015,2]
[423311031,1780049457000,152.0,0.00011627,7]
[423311033,1780049460000,152.0,0.00026822,120]
[423311032,1780049460000,152.0,0.00011651,7]
[423311034,1780049527000,572.34,0.00027455,120]
[423311035,1780049704000,175.0,0.00026345,120]
[423311036,1780049759000,152.0,0.00011801,7]
[423311038,1780049814000,-237.91090619,0.000116,2]
[423311039,1780049867000,-153.13976197,0.00011533,2]
[423311040,1780049881000,150.0,0.0002805,120]
[423311041,1780049921000,-500.0,0.00011533,2]
[423311042,1780049948000,-500.0,0.00011533,2]
[423311043,1780049974000,-496.91397328,0.00011533,2]
[423311044,1780049975000,182.16,9.599e-05,2]
[423311045,1780050001000,-496.91397328,0.00011533,2]
[423311046,1780050027000,-500.0,0.00011533,2]
[423311048,1780050054000,-500.0,0.00011533,2]
[423311050,1780050082000,-6.17205344,0.00011533,2]
[423311051,1780050133000,-475.23484724,0.00011533,2]
[423311055,1780050317000,2314.8,0.00028,120]
[423311059,1780050439000,500.0,0.000116,4]
[423311060,1780050441000,655.24444524,0.000117,4]
[423311061,1780050445000,-399.73808502,0.00011533,2]
[423311063,1780050540000,1000.0,0.00028079,120]
[423311064,1780050557000,150.0,9.765e-05,2]
[423311065,1780050609000,500.0,9.946e-05,2]
[423311078,1780050631000,-32055.91147522,0.00011533,2]
[423311079,1780050631000,-80186.5126288,0.00011533,2]
[423311076,1780050631000,-371796.62604744,0.00011533,2]
[423311077,1780050631000,-74267.99438796,0.00011533,2]
[423311074,1780050631000,-5000.0,0.00011533,2]
[423311075,1780050631000,-2371.6576,0.00011533,2]
[423311073,1780050631000,-274.62573548,0.00011433,2]
[423311072,1780050631000,-304.17750839,0.00011433,2]
[423311071,1780050631000,-153.13976197,0.00011433,2]
[423311080,1780050632000,-385.37598275,0.00011533,2]
[423311140,1780050638000,-16186.44,0.00011819,2]
[423311141,1780050638000,-3484.55,0.00011819,2]
[423311137,1780050638000,-724.99,0.00011819,2]
[423311139,1780050638000,-1464.2,0.00011819,2]
[423311132,1780050638000,-1700.0,0.000118,4]
[423311136,1780050638000,-4344.15,0.00011819,2]
[423311138,1780050638000,-150.0,0.00011819,2]
[423311135,1780050638000,-2000.0,0.00011819,2]
[423311142,1780050638000,-225.49,0.00011819,2]
[423311134,1780050638000,-500.0,0.00011804,2]
[423311144,1780050638000,-2294.78,0.00011828,2]
[423311148,1780050638000,-11628.9050019,0.00011897,2]
[423311156,1780050638000,-216.91,0.0001202,2]
[423311145,1780050638000,-500.0,0.00011832,2]
[423311147,1780050638000,-2294.78,0.00011893,2]
[423311151,1780050638000,-2294.78,0.00011958,2]
[423311149,1780050638000,-2300.0,0.000119,4]
[423311150,1780050638000,-250.0,0.00011947,2]
[423311152,1780050638000,-2505.99,0.00011973,2]
[423311133,1780050638000,-154.39,0.00011804,2]
[423311154,1780050638000,-231.0,0.00012,2]
[423311153,1780050638000,-200.0,0.00011999,2]
[423311143,1780050638000,-186.45,0.00011819,2]
[423311131,1780050638000,-231.0,0.00011772,2]
[423311109,1780050638000,-360.97910652,0.00011533,2]
[423311128,1780050638000,-2000.0,0.00011733,2]
[423311155,1780050638000,-8049.75467538,0.00012014,2]
[423311106,1780050638000,-166.26750865,0.00011523,2]
[423311107,1780050638000,-1320.6697525,0.00011532,3]
[423311113,1780050638000,-150.0,0.00011577,2]
[423311110,1780050638000,-8049.75467541,0.00011533,2]
[423311114,1780050638000,-1406090.558,0.00011633,2]
[423311111,1780050638000,-11628.90500191,0.00011533,2]
[423311108,1780050638000,-651771.72547783,0.00011533,2]
[423311112,1780050638000,-231.0,0.00011543,2]
[423311116,1780050638000,-19819.63913563,0.00011633,2]
[423311115,1780050638000,-1174.82605631,0.00011633,2]
[423311117,1780050638000,-217.14592052,0.00011633,2]
[423311118,1780050638000,-305.17,0.00011652,2]
[423311119,1780050638000,-1852.42,0.00011652,2]
[423311121,1780050638000,-318.06,0.00011652,2]
[423311123,1780050638000,-23897.38,0.00011652,2]
[423311122,1780050638000,-500.0,0.00011652,2]
[423311120,1780050638000,-150.0,0.00011652,2]
[423311125,1780050638000,-150.0,0.00011699,2]
[423311124,1780050638000,-231.0,0.00011658,2]
[423311127,1780050638000,-33204.2289,0.00011733,2]
[423311126,1780050638000,-444.75555476,0.000117,4]
[423311129,1780050638000,-170.99392172,0.00011733,2]
[423311130,1780050638000,-2294.78,0.00011762,2]
[423311157,1780050638000,-500.0,0.00012023,2]
[423311146,1780050638000,-231.0,0.00011886,2]
[423311160,1780050638000,-3473.0,0.00012032,2]
[423311190,1780050638000,-2294.78,0.00012219,2]
[423311200,1780050638000,-500.0,0.00012297,2]
[423311198,1780050638000,-2294.78,0.00012284,2]
[423311202,1780050638000,-250.0,0.00012306,2]
[423311204,1780050638000,-989.02,0.00012329,2]
[423311205,1780050638000,-231.0,0.00012343,2]
[423311216,1780050638000,-300.0,0.00012357,2]
[423311218,1780050638000,-150.0,0.00012357,2]
[423311219,1780050638000,-1000.0,0.00012381,2]
[423311207,1780050638000,-2294.78,0.00012349,2]
[423311213,1780050638000,-300.0,0.00012357,2]
[423311211,1780050638000,-1200.0,0.00012357,2]
[423311226,1780050638000,-670.2,0.00012381,2]
[423311223,1780050638000,-13514.33,0.00012381,2]
[423311222,1780050638000,-828.89,0.00012381,2]
[423311228,1780050638000,-851.91,0.00012381,2]
[423311229,1780050638000,-160.0,0.00012388,2]
[423311232,1780050638000,-2294.78,0.00012414,2]
[423311240,1780050638000,-1244.23221024,0.00012471,2]
[423311235,1780050638000,-215.5484138,0.00012469,2]
[423311233,1780050638000,-231.0,0.00012458,2]
[423311238,1780050638000,-209.09056759,0.00012469,2]
[423311158,1780050638000,-2294.78,0.00012023,2]
[423311192,1780050638000,-441.0,0.00012224,2]
[423311194,1780050638000,-231.0,0.00012229,2]
[423311209,1780050638000,-681.0,0.00012357,2]
[423311189,1780050638000,-163.0,0.000122,2]
[423311196,1780050638000,-11628.9050019,0.00012261,2]
[423311159,1780050638000,-340.0,0.00012032,2]
[423311162,1780050638000,-4845.0,0.00012032,2]
[423311164,1780050638000,-214.0,0.00012056,2]
[423311163,1780050638000,-8755.0,0.00012032,2]
[423311161,1780050638000,-377.0,0.00012032,2]
[423311167,1780050638000,-471.0,0.00012056,2]
[423311170,1780050638000,-6387.0,0.00012056,2]
[423311165,1780050638000,-13999.0,0.00012056,2]
[423311178,1780050638000,-458.0,0.00012104,2]
[423311174,1780050638000,-296.0,0.0001208,2]
[423311180,1780050638000,-231.0,0.00012115,2]
[423311168,1780050638000,-1508.0,0.00012056,2]
[423311177,1780050638000,-360.97910646,0.00012094,2]
[423311188,1780050638000,-188.0,0.00012176,2]
[423311187,1780050638000,-1209.67966863,0.00012161,2]
[423311184,1780050638000,-458.0,0.00012152,2]
[423311182,1780050638000,-250.0,0.00012147,2]
[423311185,1780050638000,-2294.78,0.00012153,2]
[423311186,1780050638000,-165.71,0.00012158,2]
[423311181,1780050638000,-418.0,0.00012128,2]
[423311179,1780050638000,-310.0,0.00012104,2]
[423311176,1780050638000,-2294.78,0.00012088,2]
[423311172,1780050638000,-166.0,0.0001208,2]
[423311183,1780050638000,-193.0,0.00012147,2]
[423311330,1780050639000,-678.0,0.00012999,2]
[423311326,1780050639000,-12582.42098997,0.00012989,2]
[423311322,1780050639000,-615.0,0.00012973,2]
[423311324,1780050639000,-8049.75467538,0.00012976,2]
[423311328,1780050639000,-11628.9050019,0.00012989,2]
[423311320,1780050639000,-737.0,0.00012948,2]
[423311317,1780050639000,-2294.78,0.00012936,2]
[423311311,1780050639000,-332.0,0.00012872,2]
[423311315,1780050639000,-1602.0,0.00012923,2]
[423311307,1780050639000,-4000.0,0.00012848,2]
[423311309,1780050639000,-2294.78,0.0001287,2]
[423311313,1780050639000,-190.0,0.00012897,2]
[423311340,1780050639000,-250.0,0.00013129,2]
[423311365,1780050639000,-295.80184599,0.00013393,2]
[423311344,1780050639000,-453.66817145,0.00013129,2]
[423311336,1780050639000,-500.0,0.00013119,2]
[423311332,1780050639000,-2294.78,0.00013001,2]
[423311334,1780050639000,-2993.07851107,0.0001305,2]
[423311342,1780050639000,-193.0,0.00013129,2]
[423311338,1780050639000,-152.81357396,0.00013129,2]
[423311353,1780050639000,-360.97910646,0.00013217,2]
[423311350,1780050639000,-4000.0,0.00013161,2]
[423311354,1780050639000,-1174.82605629,0.00013267,2]
[423311348,1780050639000,-105572.49,0.00013141,2]
[423311357,1780050639000,-19819.63913563,0.00013267,2]
[423311359,1780050639000,-202230.40168904,0.00013292,2]
[423311305,1780050639000,-1006.0,0.00012846,2]
[423311346,1780050639000,-500.0,0.00013129,2]
[423311303,1780050639000,-500.0,0.00012845,2]
[423311250,1780050639000,-2294.78,0.00012544,2]
[423311301,1780050639000,-150.30096206,0.00012834,2]
[423311241,1780050639000,-2294.78,0.00012479,2]
[423311243,1780050639000,-8049.75467538,0.00012495,2]
[423311247,1780050639000,-4000.0,0.00012535,2]
[423311246,1780050639000,-289.63,0.00012515,2]
[423311361,1780050639000,-12582.42098997,0.00013353,2]
[423311251,1780050639000,-500.0,0.00012571,2]
[423311253,1780050639000,-235.0,0.00012572,2]
[423311256,1780050639000,-182.70772955,0.00012596,2]
[423311258,1780050639000,-180.8387895,0.00012596,2]
[423311260,1780050639000,-180.83878949,0.00012596,2]
[423311262,1780050639000,-169.52064898,0.00012596,2]
[423311269,1780050639000,-197.47646254,0.00012629,2]
[423311266,1780050639000,-11628.9050019,0.00012625,2]
[423311299,1780050639000,-150.30096206,0.00012834,2]
[423311264,1780050639000,-2294.78,0.0001261,2]
[423311273,1780050639000,-360.97910646,0.00012655,2]
[423311277,1780050639000,-2294.78,0.0001274,2]
[423311275,1780050639000,-2294.78,0.00012675,2]
[423311279,1780050639000,-1522.0,0.00012744,2]
[423311287,1780050639000,-760.91,0.00012757,2]
[423311289,1780050639000,-1363.0,0.0001277,2]
[423311291,1780050639000,-154.39,0.00012788,2]
[423311280,1780050639000,-1411.07,0.00012757,2]
[423311282,1780050639000,-6120.17,0.00012757,2]
[423311285,1780050639000,-9237.19,0.00012757,2]
[423311293,1780050639000,-1902.0,0.00012795,2]
[423311295,1780050639000,-2294.78,0.00012805,2]
[423311297,1780050639000,-1206.0,0.00012821,2]
[423311271,1780050639000,-172.55357072,0.00012655,7]
[423311372,1780050639000,-151.0,0.00013394,2]
[423311367,1780050639000,-1545.0,0.00013394,2]
[423311363,1780050639000,-11628.9050019,0.00013353,2]
[423311443,1780050639000,-10000.0,0.00013598,2]
[423311437,1780050639000,-150.0,0.00013592,2]
[423311439,1780050639000,-1680.0,0.00013593,2]
[423311447,1780050639000,-195.03198619,0.00013609,2]
[423311445,1780050639000,-150.0,0.00013603,2]
[423311441,1780050639000,-195.03198619,0.00013594,2]
[423311449,1780050639000,-150.0,0.00013624,2]
[423311451,1780050639000,-150.0,0.00013624,2]
[423311453,1780050639000,-195.03198619,0.00013624,2]
[423311455,1780050639000,-150.0,0.00013627,2]
[423311457,1780050639000,-150.0,0.00013628,2]
[423311459,1780050639000,-150.0,0.00013638,2]
[423311469,1780050639000,-195.03198619,0.00013669,2]
[423311435,1780050639000,-150.0,0.00013581,2]
[423311471,1780050639000,-150.0,0.00013675,2]
[423311461,1780050639000,-195.03198619,0.00013639,2]
[423311473,1780050639000,-195.03198619,0.00013684,2]
[423311463,1780050639000,-195.03198619,0.00013654,2]
[423311467,1780050639000,-150.0,0.00013669,2]
[423311475,1780050639000,-1244.23221022,0.00013686,2]
[423311477,1780050639000,-150.0,0.00013692,2]
[423311479,1780050639000,-150.0,0.00013697,2]
[423311481,1780050639000,-500.0,0.00013698,2]
[423311483,1780050639000,-500.0,0.00013698,2]
[423311485,1780050639000,-500.0,0.00013698,2]
[423311490,1780050639000,-500.0,0.00013698,2]
[423311492,1780050639000,-500.0,0.00013698,2]
[423311370,1780050639000,-1545.0,0.00013394,2]
[423311465,1780050639000,-150.0,0.00013662,2]
[423311431,1780050639000,-150.0,0.00013578,2]
[423311488,1780050639000,-500.0,0.00013698,2]
[423311429,1780050639000,-3449.64,0.00013569,2]
[423311433,1780050639000,-195.03198619,0.00013578,2]
[423311376,1780050639000,-153.0,0.00013394,2]
[423311378,1780050639000,-258.83035611,0.000134,7]
[423311379,1780050639000,-255.0,0.00013444,2]
[423311388,1780050639000,-150.0,0.00013488,2]
[423311393,1780050639000,-150.0,0.00013488,2]
[423311386,1780050639000,-150.76604345,0.00013488,2]
[423311380,1780050639000,-8049.75467538,0.00013457,2]
[423311384,1780050639000,-150.0,0.00013488,2]
[423311395,1780050639000,-150.0,0.00013488,2]
[423311382,1780050639000,-4000.0,0.00013475,2]
[423311390,1780050639000,-150.0,0.00013488,2]
[423311392,1780050639000,-150.0,0.00013488,2]
[423311399,1780050639000,-195.03198619,0.00013488,2]
[423311374,1780050639000,-153.0,0.00013394,2]
[423311403,1780050639000,-1000.0,0.000135,2]
[423311427,1780050639000,-195.03198619,0.00013563,2]
[423311425,1780050639000,-420.0,0.0001356,2]
[423311423,1780050639000,-420.0,0.0001356,2]
[423311415,1780050639000,-150.0,0.00013535,2]
[423311401,1780050639000,-150.0,0.00013488,2]
[423311411,1780050639000,-150.0,0.00013533,2]
[423311421,1780050639000,-150.0,0.00013557,2]
[423311419,1780050639000,-150.0,0.00013556,2]
[423311417,1780050639000,-195.03198619,0.00013548,2]
[423311409,1780050639000,-150.0,0.00013523,2]
[423311405,1780050639000,-195.03198619,0.00013503,2]
[423311407,1780050639000,-195.03198619,0.00013518,2]
[423311397,1780050639000,-150.0,0.00013488,2]
[423311413,1780050639000,-195.03198619,0.00013533,2]
[423311575,1780050640000,-637.37,0.00013698,2]
[423311579,1780050640000,-637.37,0.00013698,2]
[423311577,1780050640000,-637.37,0.00013698,2]
[423311571,1780050640000,-637.37,0.00013698,2]
[423311565,1780050640000,-500.0,0.00013698,2]
[423311556,1780050640000,-500.0,0.00013698,2]
[423311563,1780050640000,-500.0,0.00013698,2]
[423311567,1780050640000,-637.37,0.00013698,2]
[423311569,1780050640000,-637.37,0.00013698,2]
[423311560,1780050640000,-500.0,0.00013698,2]
[423311559,1780050640000,-500.0,0.00013698,2]
[423311608,1780050640000,-812.78,0.00013698,2]
[423311598,1780050640000,-812.78,0.00013698,2]
[423311592,1780050640000,-637.37,0.00013698,2]
[423311600,1780050640000,-812.78,0.00013698,2]
[423311596,1780050640000,-812.78,0.00013698,2]
[423311594,1780050640000,-637.37,0.00013698,2]
[423311590,1780050640000,-637.37,0.00013698,2]
[423311583,1780050640000,-637.37,0.00013698,2]
[423311494,1780050640000,-500.0,0.00013698,2]
[423311588,1780050640000,-637.37,0.00013698,2]
[423311606,1780050640000,-812.78,0.00013698,2]
[423311604,1780050640000,-812.78,0.00013698,2]
[423311602,1780050640000,-812.78,0.00013698,2]
[423311619,1780050640000,-812.78,0.00013698,2]
[423311610,1780050640000,-812.78,0.00013698,2]
[423311550,1780050640000,-500.0,0.00013698,2]
[423311585,1780050640000,-637.37,0.00013698,2]
[423311552,1780050640000,-500.0,0.00013698,2]
[423311515,1780050640000,-500.0,0.00013698,2]
[423311544,1780050640000,-500.0,0.00013698,2]
[423311500,1780050640000,-500.0,0.00013698,2]
[423311496,1780050640000,-500.0,0.00013698,2]
[423311498,1780050640000,-500.0,0.00013698,2]
[423311502,1780050640000,-500.0,0.00013698,2]
[423311504,1780050640000,-500.0,0.00013698,2]
[423311506,1780050640000,-500.0,0.00013698,2]
[423311509,1780050640000,-500.0,0.00013698,2]
[423311523,1780050640000,-502.6201193,0.00013698,2]
[423311521,1780050640000,-508.35042822,0.00013698,2]
[423311510,1780050640000,-500.0,0.00013698,2]
[423311513,1780050640000,-500.0,0.00013698,2]
[423311525,1780050640000,-715.48,0.00013698,2]
[423311517,1780050640000,-500.0,0.00013698,2]
[423311527,1780050640000,-715.48,0.00013698,2]
[423311519,1780050640000,-500.0,0.00013698,2]
[423311529,1780050640000,-715.48,0.00013698,2]
[423311531,1780050640000,-715.48,0.00013698,2]
[423311533,1780050640000,-715.48,0.00013698,2]
[423311534,1780050640000,-715.48,0.00013698,2]
[423311536,1780050640000,-715.48,0.00013698,2]
[423311548,1780050640000,-500.0,0.00013698,2]
[423311546,1780050640000,-500.0,0.00013698,2]
[423311535,1780050640000,-715.48,0.00013698,2]
[423311537,1780050640000,-715.48,0.00013698,2]
[423311542,1780050640000,-500.0,0.00013698,2]
[423311539,1780050640000,-715.48,0.00013698,2]
[423311540,1780050640000,-715.48,0.00013698,2]
[423311554,1780050640000,-500.0,0.00013698,2]
[423311624,1780050640000,-812.78,0.00013698,2]
[423311573,1780050640000,-637.37,0.00013698,2]
[423311615,1780050640000,-812.78,0.00013698,2]
[423311698,1780050640000,-1638.37,0.00013698,2]
[423311685,1780050640000,-500.0,0.00013698,2]
[423311702,1780050640000,-1638.37,0.00013698,2]
[423311700,1780050640000,-1638.37,0.00013698,2]
[423311704,1780050640000,-1638.37,0.00013698,2]
[423311689,1780050640000,-513.91009817,0.00013698,2]
[423311692,1780050640000,-1638.37,0.00013698,2]
[423311694,1780050640000,-1638.37,0.00013698,2]
[423311709,1780050640000,-1638.37,0.00013698,2]
[423311706,1780050640000,-1638.37,0.00013698,2]
[423311715,1780050640000,-500.0,0.00013698,2]
[423311713,1780050640000,-1638.37,0.00013698,2]
[423311711,1780050640000,-1638.37,0.00013698,2]
[423311687,1780050640000,-288.28618426,0.00013698,2]
[423311724,1780050640000,-500.0,0.00013698,2]
[423311727,1780050640000,-500.0,0.00013698,2]
[423311719,1780050640000,-500.0,0.00013698,2]
[423311722,1780050640000,-500.0,0.00013698,2]
[423311726,1780050640000,-500.0,0.00013698,2]
[423311728,1780050640000,-500.0,0.00013698,2]
[423311730,1780050640000,-500.0,0.00013698,2]
[423311729,1780050640000,-500.0,0.00013698,2]
[423311731,1780050640000,-500.0,0.00013698,2]
[423311733,1780050640000,-500.0,0.00013698,2]
[423311735,1780050640000,-500.0,0.00013698,2]
[423311736,1780050640000,-500.0,0.00013698,2]
[423311738,1780050640000,-500.0,0.00013698,2]
[423311617,1780050640000,-812.78,0.00013698,2]
[423311717,1780050640000,-500.0,0.00013698,2]
[423311696,1780050640000,-1638.37,0.00013698,2]
[423311581,1780050640000,-637.37,0.00013698,2]
[423311683,1780050640000,-500.0,0.00013698,2]
[423311681,1780050640000,-500.0,0.00013698,2]
[423311613,1780050640000,-812.78,0.00013698,2]
[423311621,1780050640000,-812.78,0.00013698,2]
[423311628,1780050640000,-790.5,0.00013698,2]
[423311630,1780050640000,-790.5,0.00013698,2]
[423311632,1780050640000,-790.5,0.00013698,2]
[423311643,1780050640000,-790.5,0.00013698,2]
[423311635,1780050640000,-790.5,0.00013698,2]
[423311645,1780050640000,-790.5,0.00013698,2]
[423311641,1780050640000,-790.5,0.00013698,2]
[423311637,1780050640000,-790.5,0.00013698,2]
[423311647,1780050640000,-790.5,0.00013698,2]
[423311639,1780050640000,-790.5,0.00013698,2]
[423311649,1780050640000,-790.5,0.00013698,2]
[423311626,1780050640000,-509.61126299,0.00013698,2]
[423311655,1780050640000,-790.5,0.00013698,2]
[423311668,1780050640000,-500.0,0.00013698,2]
[423311676,1780050640000,-406.0981632,0.00013698,2]
[423311664,1780050640000,-500.0,0.00013698,2]
[423311651,1780050640000,-790.5,0.00013698,2]
[423311666,1780050640000,-500.0,0.00013698,2]
[423311679,1780050640000,-500.0,0.00013698,2]
[423311674,1780050640000,-500.0,0.00013698,2]
[423311670,1780050640000,-500.0,0.00013698,2]
[423311672,1780050640000,-500.0,0.00013698,2]
[423311660,1780050640000,-500.0,0.00013698,2]
[423311657,1780050640000,-500.0,0.00013698,2]
[423311653,1780050640000,-790.5,0.00013698,2]
[423311662,1780050640000,-500.0,0.00013698,2]
[423311824,1780050641000,-1519.08,0.00013698,2]
[423311828,1780050641000,-1519.08,0.00013698,2]
[423311807,1780050641000,-1519.08,0.00013698,2]
[423311809,1780050641000,-500.0,0.00013698,2]
[423311826,1780050641000,-544.57270483,0.00013698,2]
[423311805,1780050641000,-500.0,0.00013698,2]
[423311815,1780050641000,-1519.08,0.00013698,2]
[423311819,1780050641000,-1519.08,0.00013698,2]
[423311818,1780050641000,-500.0,0.00013698,2]
[423311822,1780050641000,-500.0,0.00013698,2]
[423311803,1780050641000,-1519.08,0.00013698,2]
[423311813,1780050641000,-500.0,0.00013698,2]
[423311811,1780050641000,-1519.08,0.00013698,2]
[423311830,1780050641000,-1519.08,0.00013698,2]
[423311847,1780050641000,-215.93774854,0.00013698,2]
[423311834,1780050641000,-1519.08,0.00013698,2]
[423311838,1780050641000,-1519.08,0.00013698,2]
[423311845,1780050641000,-500.0,0.00013698,2]
[423311842,1780050641000,-1519.08,0.00013698,2]
[423311840,1780050641000,-1519.08,0.00013698,2]
[423311849,1780050641000,-500.0,0.00013698,2]
[423311851,1780050641000,-500.0,0.00013698,2]
[423311854,1780050641000,-500.0,0.00013698,2]
[423311856,1780050641000,-500.0,0.00013698,2]
[423311858,1780050641000,-500.0,0.00013698,2]
[423311862,1780050641000,-500.0,0.00013698,2]
[423311860,1780050641000,-500.0,0.00013698,2]
[423311786,1780050641000,-500.0,0.00013698,2]
[423311832,1780050641000,-1519.08,0.00013698,2]
[423311801,1780050641000,-500.0,0.00013698,2]
[423311758,1780050641000,-500.0,0.00013698,2]
[423311789,1780050641000,-500.0,0.00013698,2]
[423311743,1780050641000,-500.0,0.00013698,2]
[423311744,1780050641000,-500.0,0.00013698,2]
[423311747,1780050641000,-500.0,0.00013698,2]
[423311740,1780050641000,-500.0,0.00013698,2]
[423311748,1780050641000,-500.0,0.00013698,2]
[423311751,1780050641000,-500.0,0.00013698,2]
[423311752,1780050641000,-500.0,0.00013698,2]
[423311754,1780050641000,-494.05405209,0.00013698,2]
[423311772,1780050641000,-500.0,0.00013698,2]
[423311766,1780050641000,-500.0,0.00013698,2]
[423311770,1780050641000,-549.86590822,0.00013698,2]
[423311774,1780050641000,-500.0,0.00013698,2]
[423311760,1780050641000,-500.0,0.00013698,2]
[423311788,1780050641000,-500.0,0.00013698,2]
[423311756,1780050641000,-500.0,0.00013698,2]
[423311864,1780050641000,-500.0,0.00013698,2]
[423311768,1780050641000,-500.98841957,0.00013698,2]
[423311762,1780050641000,-500.0,0.00013698,2]
[423311776,1780050641000,-500.0,0.00013698,2]
[423311778,1780050641000,-500.0,0.00013698,2]
[423311780,1780050641000,-500.0,0.00013698,2]
[423311782,1780050641000,-500.0,0.00013698,2]
[423311793,1780050641000,-500.0,0.00013698,2]
[423311795,1780050641000,-500.0,0.00013698,2]
[423311799,1780050641000,-1519.08,0.00013698,2]